fUSD/lending_fUSD_20250407
["ID","MTS","AMOUNT","RATE_DAILY","PERIOD"]
[357404198,1744047050653,-500.0,0.00044109,30]
[357404200,1744047050663,-500.0,0.00044109,30]
[357404202,1744047050672,-1668.09,0.00044109,30]
[357404204,1744047050681,-501.31,0.00044109,30]
[357404206,1744047050690,-151.0,0.00044109,14]
[357404208,1744047050699,-500.0,0.00044109,30]
[357404210,1744047050709,-2008.16,0.00044109,30]
[357404212,1744047050718,-500.0,0.00044109,30]
[357404214,1744047050728,-1353.05,0.00044109,30]
[357404216,1744047050738,-1219.72,0.00044109,30]
[357404218,1744047050747,-8425.456637,0.00044109,30]
[357404220,1744047050757,-500.0,0.00044109,30]
[357404222,1744047050766,-500.0,0.00044109,30]
[357404224,1744047050778,-500.0,0.00044109,30]
[357404226,1744047050787,-150.0,0.00044114,2]
[357404228,1744047050796,-150.0,0.00044145,2]
[357404230,1744047050805,-500.0,0.00044173,10]
[357404232,1744047050815,-500.0,0.00044173,2]
[357404234,1744047050824,-338.0,0.00044173,10]
[357404236,1744047050834,-357.81390996,0.00044173,5]
[357404238,1744047050843,-500.0,0.00044173,10]
[357404240,1744047050853,-500.0,0.00044173,10]
[357404242,1744047050863,-150.0,0.00044198,2]
[357404244,1744047050873,-1125.64,0.00044219,2]
[357404246,1744047050883,-150.0,0.00044341,2]
[357404248,1744047050895,-23280.3087146,0.00044361,3]
[357404251,1744047050908,-7760.10290488,0.00044362,3]
[357404252,1744047050919,-7760.10290488,0.00044363,3]
[357404254,1744047050928,-687.307423,0.00044371,30]
[357404257,1744047050938,-504.17,0.00044371,30]
[357404259,1744047050950,-768.13,0.00044371,30]
[357404261,1744047050961,-568.96,0.00044371,30]
[357404263,1744047050971,-949.4,0.00044371,30]
[357404265,1744047050982,-976.24,0.00044371,30]
[357404266,1744047050993,-154.172594,0.00044371,30]
[357404268,1744047051003,-969.8,0.00044371,30]
[357404270,1744047051013,-151.0,0.00044371,14]
[357404272,1744047051023,-1013.48,0.00044371,30]
[357404274,1744047051033,-533.96,0.00044371,2]
[357404276,1744047051043,-778.43,0.00044371,30]
[357404278,1744047051054,-2074.29,0.00044371,30]
[357404280,1744047051064,-500.0,0.00044371,30]
[357404282,1744047051074,-2967.34,0.00044371,30]
[357404284,1744047051084,-5571.213073,0.00044371,14]
[357404287,1744047051094,-895.81,0.00044371,30]
[357404289,1744047051104,-5571.213073,0.00044371,14]
[357404291,1744047051113,-893.23,0.00044371,30]
[357404292,1744047051123,-1107.27,0.00044371,30]
[357404295,1744047051151,-703.64,0.00044371,30]
[357404298,1744047051169,-937.86,0.00044371,30]
[357404301,1744047051192,-855.11,0.00044371,30]
[357404304,1744047051212,-921.51,0.00044371,30]
[357404307,1744047051228,-1222.14,0.00044371,30]
[357404310,1744047051248,-3749.17,0.00044371,30]
[357404313,1744047051268,-1776.22,0.00044371,30]
[357404316,1744047051288,-151.0,0.00044371,14]
[357404319,1744047051307,-544.91,0.00044371,30]
[357404322,1744047051325,-1954.7,0.00044371,30]
[357404325,1744047051344,-2276.9,0.00044371,30]
[357404327,1744047051357,-29231.503894,0.00044371,3]
[357404341,1744047052633,-2070.33414229,0.00044371,3]
[357404342,1744047052646,-4150.0,0.00044371,3]
[357404343,1744047052658,-1172.82805513,0.00044371,3]
[357404344,1744047053106,-3220.70527447,0.00044371,3]
[357404345,1744047053434,-391.97809931,0.00044371,3]
[357404346,1744047053471,-142.25393084,0.00044371,3]
[357404347,1744047053481,-6181.01403326,0.00044371,3]
[357404348,1744047053490,-4826.17280707,0.00044372,3]
[357404349,1744047053501,-654.14648305,0.00044372,3]
[357404350,1744047053512,-2694.61230655,0.00044372,3]
[357404351,1744047053529,-492.24178556,0.00044372,3]
[357404352,1744047053540,-37893.44404707,0.00044372,3]
[357404353,1744047053549,-151.0,0.00044372,14]
[357404354,1744047053558,-151.0,0.00044373,14]
[357404355,1744047053567,-151.0,0.00044373,14]
[357404356,1744047053576,-151.0,0.00044373,14]
[357404357,1744047053585,-151.0,0.00044373,14]
[357404358,1744047053595,-151.0,0.00044373,14]
[357404359,1744047053604,-151.0,0.00044373,14]
[357404360,1744047053613,-151.0,0.00044373,14]
[357404361,1744047053623,-151.0,0.00044373,14]
[357404362,1744047053632,-288.864975,0.00044373,14]
[357404363,1744047053641,-151.0,0.00044373,14]
[357404364,1744047053651,-288.864975,0.00044373,14]
[357404365,1744047053660,-151.0,0.00044373,14]
[357404366,1744047053669,-267.957047,0.00044373,14]
[357404367,1744047053679,-267.957047,0.00044373,14]
[357404368,1744047053688,-290.91158,0.00044373,14]
[357404369,1744047053697,-151.0,0.00044373,14]
[357404370,1744047053706,-151.0,0.00044373,14]
[357404371,1744047053716,-290.91158,0.00044373,14]
[357404372,1744047053726,-151.0,0.00044373,14]
[357404373,1744047053735,-151.0,0.00044373,14]
[357404374,1744047053744,-151.0,0.00044373,14]
[357404375,1744047053754,-151.252334,0.00044373,14]
[357404376,1744047053763,-151.0,0.00044373,14]
[357404377,1744047053772,-151.252334,0.00044373,14]
[357404378,1744047053781,-5571.213073,0.00044373,14]
[357404379,1744047053791,-5571.213073,0.00044373,14]
[357404380,1744047053800,-151.0,0.00044373,14]
[357404381,1744047053810,-151.0,0.00044373,14]
[357404382,1744047053819,-502.99,0.00044381,30]
[357404383,1744047053828,-655.98,0.00044381,30]
[357404384,1744047053838,-500.0,0.00044381,30]
[357404385,1744047053847,-1267.82,0.00044381,30]
[357404386,1744047053857,-500.0,0.00044381,30]
[357404387,1744047053867,-500.0,0.00044381,30]
[357404388,1744047053876,-500.0,0.00044381,30]
[357404389,1744047053886,-500.0,0.00044381,30]
[357404390,1744047053897,-41.71223745,0.00044381,30]
[357404392,1744047472670,423.08,0.00033,120]
[357404393,1744047518574,1000.0,0.00042792,30]
[357404394,1744047655429,1000.0,0.00042792,30]
[357404395,1744047941130,-250.0,0.00019,2]
[357404396,1744047941152,-300.0,0.00021,2]
[357404397,1744047941174,-350.0,0.00023,2]
[357404398,1744047941200,-265.93939263,0.00025,2]
[357404399,1744048019164,-134.06060737,0.00025,2]
[357404400,1744048019187,-255.44298204,0.00026849,2]
[357404401,1744048029127,-16.61701796,0.00026849,2]
[357404402,1744048029155,-151.82238363,0.00027,2]
[357404403,1744048033144,-298.17761637,0.00027,2]
[357404404,1744048033167,-365.89750242,0.000304,2]
[357404405,1744048033188,-169.00203654,0.000304,2]
[357404406,1744048033209,-365.89750241,0.00032546,2]
[357404407,1744048033230,-272.06,0.00032646,2]
[357404408,1744048033251,-250.0,0.00032701,2]
[357404409,1744048033272,-250.0,0.0003355,2]
[357404410,1744048033293,-4010.03312744,0.00034548,2]
[357404412,1744048037101,-829.32917554,0.00034375,2]
[357404413,1744048040247,-591.04798746,0.00034375,2]
[357404414,1744048040268,-151.75405853,0.00034548,2]
[357404415,1744048049089,-250.0,0.00033418,2]
[357404416,1744048049109,-3086.33281403,0.00034548,2]
[357404417,1744048049130,-239.70549076,0.00034548,2]
[357404421,1744048232551,-432.88707856,0.00034448,2]
[357404422,1744048232562,-50.28450924,0.00034548,2]
[357404423,1744048232572,-299.99,0.00034548,30]
[357404424,1744048232582,-150.99,0.00034548,2]
[357404425,1744048232591,-150.0,0.00034548,10]
[357404426,1744048232601,-264.54652886,0.00035001,2]
[357404427,1744048232610,-500.0,0.00036055,2]
[357404428,1744048232619,-186.82145842,0.000372,103]
[357404429,1744048232629,-40.01489269,0.00038443,2]
[357404430,1744048232640,-232.04510731,0.00038443,2]
[357404431,1744048232650,-1010.64,0.00039315,2]
[357404432,1744048232659,-185.0,0.00040767,2]
[357404433,1744048232668,-158.04,0.00040786,2]
[357404434,1744048232677,-150.99,0.00040786,30]
[357404435,1744048232687,-185.0,0.00040971,2]
[357404436,1744048232696,-166.0,0.00041,14]
[357404437,1744048232711,-151.8,0.00041096,2]
[357404438,1744048232720,-1010.64,0.00041579,2]
[357404440,1744048232730,-161.19,0.00041937,120]
[357404442,1744048232739,-200.0,0.00041942,7]
[357404444,1744048232749,-250.0,0.00041969,2]
[357404446,1744048232758,-550.0,0.00041978,5]
[357404448,1744048232767,-9936.67377331,0.00041979,2]
[357404450,1744048232780,-450.82714874,0.00041979,2]
[357404454,1744048232811,-13512.49907795,0.00041979,2]
[357404456,1744048232822,-261.52,0.00042029,120]
[357404458,1744048232832,-200.08,0.00042071,2]
[357404460,1744048232841,-211.5,0.00042165,120]
[357404462,1744048232851,-276.41,0.00042273,2]
[357404464,1744048232861,-1116.86128588,0.00042335,30]
[357404465,1744048232870,-185.99,0.00042496,2]
[357404467,1744048232880,-150.0,0.00042505,2]
[357404468,1744048232889,-2000.0,0.00042536,120]
[357404470,1744048232899,-1000.0,0.00042582,30]
[357404471,1744048232909,-545.45,0.00042651,2]
[357404472,1744048232919,-450.0,0.00042651,4]
[357404473,1744048232928,-1000.0,0.00042818,7]
[357404474,1744048232937,-1000.0,0.00042818,7]
[357404475,1744048232947,-1000.0,0.00042818,7]
[357404476,1744048232956,-1000.0,0.00042818,7]
[357404477,1744048232966,-1000.0,0.00042818,7]
[357404478,1744048232975,-500.0,0.00043075,2]
[357404479,1744048232984,-700.0,0.00043102,2]
[357404480,1744048232993,-310.26580553,0.00043125,2]
[357404481,1744048233002,-150.0,0.00043132,2]
[357404482,1744048233012,-184.63394623,0.00043149,2]
[357404483,1744048233022,-166.0,0.00043151,90]
[357404484,1744048233031,-3695.995,0.00043151,66]
[357404485,1744048233041,-162.563,0.00043151,66]
[357404486,1744048233051,-2962.11066261,0.00043175,2]
[357404487,1744048233064,-7919.9677952,0.00043175,2]
[357404488,1744048233074,-150.0,0.00043225,2]
[357404489,1744048233084,-150.0,0.00043363,2]
[357404490,1744048233093,-150.0,0.00043363,2]
[357404491,1744048233103,-150.0,0.00043368,2]
[357404492,1744048233112,-150.0,0.00043377,2]
[357404493,1744048233122,-150.0,0.00043405,2]
[357404494,1744048233132,-227.78,0.00043423,2]
[357404495,1744048233141,-150.0,0.00043471,2]
[357404496,1744048233151,-150.0,0.00043545,2]
[357404497,1744048233160,-150.0,0.00043548,2]
[357404498,1744048233170,-150.0,0.00043553,2]
[357404499,1744048233180,-158.53,0.00043558,120]
[357404500,1744048233190,-222.80642644,0.00043558,120]
[357404501,1744048233200,-150.0,0.00043573,2]
[357404502,1744048233209,-150.0,0.00043644,2]
[357404503,1744048233219,-453.17158284,0.000437,15]
[357404508,1744048238386,-282.55999991,0.0004343,2]
[357404509,1744048238398,-27.70580561,0.0004343,2]
[357404510,1744048238408,-46.82841716,0.000437,15]
[357404511,1744048238611,-150.0,0.00043719,2]
[357404512,1744048238622,-1184.9798,0.00043725,2]
[357404513,1744048238632,-224.1887,0.00043725,2]
[357404514,1744048238641,-315.3407,0.00043725,2]
[357404515,1744048238651,-586.59727227,0.00043735,61]
[357404516,1744048238661,-585.75930496,0.00043735,16]
[357404517,1744048238676,-597.23180854,0.00043735,16]
[357404518,1744048238686,-5464.28979694,0.00043735,15]
[357404519,1744048238704,-1473.28078962,0.00043735,15]
[357404520,1744048238716,-1624.81640064,0.00043735,15]
[357404521,1744048238725,-310.26580552,0.00043735,2]
[357404522,1744048238735,-3726.26700422,0.00043735,2]
[357404523,1744048238747,-500.6575,0.00043735,2]
[357404524,1744048238771,-1646.17249578,0.00043735,2]
[357404525,1744048238782,-1000.0,0.000438,15]
[357404526,1744048238793,-1000.0,0.00043818,7]
[357404527,1744048238804,-1000.0,0.00043818,7]
[357404528,1744048238813,-1000.0,0.00043818,7]
[357404529,1744048238823,-168.0354608,0.00043824,31]
[357404530,1744048238833,-13931.49414905,0.00043825,2]
[357404531,1744048238843,-64724.2542285,0.00043825,3]
[357404532,1744048238852,-1083.84,0.00043825,2]
[357404533,1744048238862,-500.0,0.00043834,31]
[357404534,1744048238871,-500.0,0.00043834,31]
[357404535,1744048238881,-500.0,0.00043834,31]
[357404536,1744048238891,-500.0,0.00043834,31]
[357404537,1744048238901,-502.74056902,0.00043834,31]
[357404538,1744048238910,-500.0,0.00043835,30]
[357404539,1744048238920,-500.0,0.00043835,30]
[357404540,1744048238930,-500.0,0.00043835,120]
[357404541,1744048238939,-500.0,0.00043835,30]
[357404542,1744048238949,-500.0,0.00043835,30]
[357404543,1744048238959,-645.9,0.00043835,30]
[357404544,1744048238968,-615.49,0.00043835,30]
[357404545,1744048238978,-500.0,0.00043835,30]
[357404546,1744048238987,-500.0,0.00043835,30]
[357404547,1744048238997,-1034.98,0.00043835,30]
[357404548,1744048239007,-551.31416979,0.00043835,30]
[357404549,1744048239017,-500.0,0.00043835,30]
[357404550,1744048239027,-500.0,0.00043835,30]
[357404551,1744048239037,-500.0,0.00043835,30]
[357404552,1744048239050,-500.0,0.00043835,30]
[357404553,1744048239060,-500.0,0.00043835,30]
[357404554,1744048239070,-532.81,0.00043835,5]
[357404555,1744048239079,-500.0,0.00043835,30]
[357404556,1744048239089,-500.0,0.00043835,30]
[357404557,1744048239098,-518.63,0.00043835,30]
[357404558,1744048239108,-500.0,0.00043835,30]
[357404559,1744048239118,-661.0,0.00043835,30]
[357404560,1744048239127,-500.0,0.00043835,30]
[357404561,1744048239141,-500.0,0.00043835,30]
[357404562,1744048239151,-500.0,0.00043835,30]
[357404563,1744048239162,-500.0,0.00043835,30]
[357404564,1744048239172,-500.0,0.00043835,30]
[357404565,1744048239183,-500.0,0.00043835,30]
[357404566,1744048239193,-500.0,0.00043835,30]
[357404567,1744048239203,-500.0,0.00043835,30]
[357404568,1744048239214,-500.0,0.00043835,30]
[357404570,1744048239223,-500.0,0.00043835,30]
[357404572,1744048239234,-500.0,0.00043835,30]
[357404574,1744048239244,-209.09508105,0.00043835,30]
[357404576,1744048239254,-500.0,0.00043835,30]
[357404578,1744048239264,-500.0,0.00043835,30]
[357404580,1744048239274,-500.0,0.00043835,30]
[357404582,1744048239285,-500.0,0.00043835,30]
[357404584,1744048239295,-510.23,0.00043835,30]
[357404586,1744048239306,-500.0,0.00043835,30]
[357404588,1744048239315,-500.0,0.00043835,30]
[357404590,1744048239325,-500.0,0.00043835,30]
[357404591,1744048239335,-500.0,0.00043835,30]
[357404593,1744048239344,-500.0,0.00043835,30]
[357404595,1744048239355,-500.0,0.00043835,30]
[357404597,1744048239365,-500.0,0.00043835,30]
[357404599,1744048239375,-500.0,0.00043835,30]
[357404601,1744048239385,-500.0,0.00043835,30]
[357404603,1744048239395,-500.0,0.00043835,30]
[357404605,1744048239405,-500.0,0.00043835,30]
[357404607,1744048239415,-500.0,0.00043835,30]
[357404609,1744048239424,-500.0,0.00043835,30]
[357404611,1744048239434,-500.0,0.00043835,30]
[357404613,1744048239443,-500.0,0.00043835,30]
[357404615,1744048239456,-500.0,0.00043835,30]
[357404617,1744048239465,-500.0,0.00043835,30]
[357404619,1744048239475,-500.0,0.00043835,30]
[357404621,1744048239485,-520.7161312,0.00043835,30]
[357404623,1744048239495,-500.0,0.00043835,30]
[357404625,1744048239504,-500.0,0.00043835,30]
[357404627,1744048239514,-500.0,0.00043835,30]
[357404629,1744048239524,-500.0,0.00043835,30]
[357404631,1744048239533,-500.0,0.00043835,30]
[357404633,1744048239543,-500.0,0.00043835,30]
[357404635,1744048239553,-805.1,0.00043835,30]
[357404637,1744048239563,-500.0,0.00043835,30]
[357404639,1744048239573,-500.0,0.00043835,30]
[357404640,1744048239583,-500.0,0.00043835,30]
[357404642,1744048239593,-500.0,0.00043835,30]
[357404643,1744048239603,-500.0,0.00043835,30]
[357404644,1744048239613,-500.0,0.00043835,30]
[357404645,1744048239623,-500.0,0.00043835,30]
[357404646,1744048239632,-500.0,0.00043835,30]
[357404647,1744048239642,-500.0,0.00043835,30]
[357404648,1744048239652,-500.0,0.00043835,30]
[357404649,1744048239664,-500.0,0.00043835,30]
[357404650,1744048239674,-500.0,0.00043835,30]
[357404651,1744048239683,-500.0,0.00043835,30]
[357404652,1744048239698,-208.68451173,0.00043835,30]
[357404653,1744048239707,-500.0,0.00043835,30]
[357404654,1744048239717,-621.42969885,0.00043835,30]
[357404655,1744048239726,-500.0,0.00043835,30]
[357404656,1744048239737,-500.0,0.00043835,30]
[357404657,1744048239746,-500.0,0.00043835,30]
[357404658,1744048239755,-547.39,0.00043835,30]
[357404659,1744048239765,-500.0,0.00043835,30]
[357404660,1744048239774,-500.0,0.00043835,30]
[357404661,1744048239786,-500.0,0.00043835,30]
[357404662,1744048239795,-1840.82,0.00043835,30]
[357404663,1744048239804,-500.0,0.00043835,30]
[357404664,1744048239814,-533.30957073,0.00043835,30]
[357404665,1744048239823,-500.0,0.00043835,30]
[357404666,1744048239832,-500.0,0.00043835,30]
[357404667,1744048239842,-500.0,0.00043835,30]
[357404668,1744048239851,-500.0,0.00043835,30]
[357404669,1744048239860,-500.0,0.00043835,30]
[357404671,1744048239869,-500.0,0.00043835,30]
[357404673,1744048239879,-500.0,0.00043835,30]
[357404675,1744048239888,-601.32,0.00043835,30]
[357404676,1744048239897,-500.0,0.00043835,30]
[357404679,1744048239906,-500.0,0.00043835,30]
[357404680,1744048239915,-500.0,0.00043835,30]
[357404682,1744048239924,-359.01899225,0.00043835,30]
[357404684,1744048239933,-500.0,0.00043835,30]
[357404686,1744048239942,-500.0,0.00043835,30]
[357404688,1744048239952,-1162.16,0.00043835,30]
[357404690,1744048239961,-500.0,0.00043835,30]
[357404692,1744048239970,-500.0,0.00043835,30]
[357404694,1744048239980,-392.61283609,0.00043835,30]
[357404696,1744048239989,-500.0,0.00043835,30]
[357404698,1744048239998,-500.0,0.00043835,30]
[357404700,1744048240007,-500.0,0.00043835,30]
[357404702,1744048240017,-500.0,0.00043835,30]
[357404704,1744048240026,-500.0,0.00043835,30]
[357404706,1744048240035,-528.32031444,0.00043835,30]
[357404708,1744048240046,-1991.71,0.00043835,30]
[357404710,1744048240055,-500.0,0.00043835,30]
[357404712,1744048240066,-500.0,0.00043835,30]
[357404714,1744048240076,-500.0,0.00043835,30]
[357404716,1744048240085,-500.0,0.00043835,30]
[357404718,1744048240094,-1910.31,0.00043835,30]
[357404720,1744048240103,-500.0,0.00043835,30]
[357404722,1744048240113,-516.88263078,0.00043835,30]
[357404725,1744048240122,-500.0,0.00043835,30]
[357404727,1744048240131,-500.03,0.00043835,30]
[357404730,1744048240141,-562.27,0.00043835,30]
[357404733,1744048240150,-500.0,0.00043835,30]
[357404735,1744048240159,-1000.0,0.00043835,30]
[357404737,1744048240168,-500.0,0.00043835,30]
[357404739,1744048240177,-500.0,0.00043835,30]
[357404741,1744048240187,-538.05894198,0.00043835,30]
[357404743,1744048240196,-946.74,0.00043835,30]
[357404745,1744048240205,-500.0,0.00043835,30]
[357404747,1744048240215,-500.0,0.00043835,30]
[357404749,1744048240224,-500.0,0.00043835,30]
[357404751,1744048240234,-500.0,0.00043835,30]
[357404753,1744048240243,-611.54411925,0.00043835,30]
[357404755,1744048240252,-500.0,0.00043835,30]
[357404757,1744048240263,-500.0,0.00043835,30]
[357404759,1744048240273,-500.0,0.00043835,30]
[357404761,1744048240282,-500.0,0.00043835,30]
[357404764,1744048240292,-500.0,0.00043835,30]
[357404766,1744048240303,-500.0,0.00043835,30]
[357404769,1744048240313,-695.77,0.00043835,30]
[357404771,1744048240322,-500.0,0.00043835,30]
[357404773,1744048240331,-500.0,0.00043835,30]
[357404775,1744048240340,-542.63,0.00043835,30]
[357404777,1744048240350,-500.0,0.00043835,30]
[357404779,1744048240359,-500.0,0.00043835,30]
[357404781,1744048240369,-500.0,0.00043835,30]
[357404783,1744048240379,-500.0,0.00043835,30]
[357404785,1744048240388,-500.0,0.00043835,30]
[357404787,1744048240398,-500.0,0.00043835,30]
[357404789,1744048240407,-500.0,0.00043835,30]
[357404791,1744048240417,-742.0,0.00043835,30]
[357404793,1744048240427,-500.0,0.00043835,30]
[357404795,1744048240437,-500.0,0.00043835,30]
[357404797,1744048240446,-500.0,0.00043835,30]
[357404799,1744048240455,-500.0,0.00043835,30]
[357404800,1744048240464,-500.0,0.00043835,30]
[357404803,1744048240474,-500.0,0.00043835,30]
[357404805,1744048240484,-683.77,0.00043835,30]
[357404807,1744048240494,-500.0,0.00043835,30]
[357404809,1744048240503,-500.0,0.00043835,30]
[357404810,1744048240513,-655.93,0.00043835,30]
[357404813,1744048240522,-500.0,0.00043835,30]
[357404814,1744048240531,-500.0,0.00043835,30]
[357404816,1744048240541,-500.0,0.00043835,30]
[357404818,1744048240551,-500.0,0.00043835,30]
[357404820,1744048240560,-500.0,0.00043835,30]
[357404822,1744048240569,-500.0,0.00043835,30]
[357404824,1744048240579,-500.0,0.00043835,30]
[357404826,1744048240588,-501.93317308,0.00043835,30]
[357404828,1744048240598,-529.56074642,0.00043835,30]
[357404830,1744048240607,-807.01,0.00043835,30]
[357404832,1744048240616,-500.0,0.00043835,30]
[357404834,1744048240626,-500.0,0.00043835,30]
[357404836,1744048240635,-500.0,0.00043835,30]
[357404838,1744048240644,-500.0,0.00043835,30]
[357404840,1744048240653,-500.0,0.00043835,30]
[357404842,1744048240664,-500.0,0.00043835,30]
[357404844,1744048240673,-500.0,0.00043835,30]
[357404846,1744048240683,-500.0,0.00043835,30]
[357404848,1744048240695,-1164.89,0.00043835,30]
[357404850,1744048240709,-500.0,0.00043835,30]
[357404852,1744048240719,-500.0,0.00043835,30]
[357404854,1744048240728,-688.96,0.00043835,30]
[357404856,1744048240737,-528.2,0.00043835,30]
[357404858,1744048240747,-500.0,0.00043835,30]
[357404860,1744048240756,-500.0,0.00043835,30]
[357404862,1744048240765,-541.23,0.00043835,30]
[357404864,1744048240774,-500.0,0.00043835,30]
[357404866,1744048240785,-500.0,0.00043835,30]
[357404868,1744048240796,-800.11,0.00043835,30]
[357404870,1744048240806,-500.0,0.00043835,30]
[357404872,1744048240815,-500.0,0.00043835,30]
[357404874,1744048240825,-500.0,0.00043835,30]
[357404876,1744048240834,-946.16,0.00043835,30]
[357404878,1744048240843,-500.0,0.00043835,30]
[357404880,1744048240852,-500.0,0.00043835,30]
[357404882,1744048240861,-500.0,0.00043835,30]
[357404884,1744048240871,-500.0,0.00043835,30]
[357404886,1744048240880,-509.67970619,0.00043835,30]
[357404888,1744048240889,-500.0,0.00043835,30]
[357404890,1744048240899,-1058.81,0.00043835,30]
[357404892,1744048240909,-500.0,0.00043835,30]
[357404894,1744048240918,-500.0,0.00043835,30]
[357404896,1744048240927,-500.0,0.00043835,30]
[357404897,1744048240937,-1276.46,0.00043835,30]
[357404899,1744048240946,-500.0,0.00043835,30]
[357404902,1744048240956,-500.0,0.00043835,30]
[357404903,1744048240965,-500.0,0.00043835,30]
[357404905,1744048240975,-500.0,0.00043835,30]
[357404907,1744048240984,-500.0,0.00043835,30]
[357404909,1744048240994,-500.0,0.00043835,30]
[357404912,1744048241004,-500.0,0.00043835,30]
[357404913,1744048241014,-713.52,0.00043835,30]
[357404915,1744048241023,-500.0,0.00043835,30]
[357404917,1744048241032,-500.0,0.00043835,30]
[357404918,1744048241042,-500.0,0.00043835,30]
[357404920,1744048241054,-500.0,0.00043835,30]
[357404923,1744048241063,-500.0,0.00043835,30]
[357404925,1744048241073,-500.0,0.00043835,30]
[357404927,1744048241082,-500.0,0.00043835,30]
[357404929,1744048241092,-500.0,0.00043835,30]
[357404932,1744048241102,-500.0,0.00043835,30]
[357404935,1744048241112,-759.97,0.00043835,30]
[357404938,1744048241121,-500.0,0.00043835,30]
[357404941,1744048241132,-896.79,0.00043835,30]
[357404943,1744048241141,-169.24261575,0.00043835,30]
[357404945,1744048241150,-211.1551195,0.00043835,30]
[357404947,1744048241159,-562.76,0.00043835,30]
[357404949,1744048241169,-620.52,0.00043835,30]
[357404966,1744048241327,-500.0,0.00043835,30]
[357404969,1744048241354,-500.0,0.00043835,30]
[357404971,1744048241364,-500.0,0.00043835,30]
[357404973,1744048241374,-835.06,0.00043835,30]
[357404975,1744048241384,-500.0,0.00043835,30]
[357404977,1744048241394,-500.0,0.00043835,30]
[357404979,1744048241404,-500.0,0.00043835,30]
[357404981,1744048241413,-312.26061558,0.00043835,30]
[357404983,1744048241423,-788.51,0.00043835,30]
[357404985,1744048241433,-500.0,0.00043835,30]
[357404987,1744048241442,-500.0,0.00043835,30]
[357404989,1744048241452,-500.0,0.00043835,30]
[357404991,1744048241461,-500.0,0.00043835,30]
[357404992,1744048241470,-500.0,0.00043835,30]
[357404994,1744048241479,-500.0,0.00043835,30]
[357404996,1744048241489,-659.01,0.00043835,30]
[357404998,1744048241498,-500.0,0.00043835,30]
[357405000,1744048241508,-500.0,0.00043835,30]
[357405002,1744048241517,-500.0,0.00043835,30]
[357405004,1744048241527,-500.0,0.00043835,30]
[357405006,1744048241536,-500.0,0.00043835,30]
[357405008,1744048241547,-500.0,0.00043835,30]
[357405010,1744048241557,-500.0,0.00043835,30]
[357405012,1744048241566,-500.0,0.00043835,30]
[357405014,1744048241577,-755.39,0.00043835,30]
[357405016,1744048241586,-531.53,0.00043835,30]
[357405018,1744048241597,-500.0,0.00043835,30]
[357405020,1744048241607,-1073.76,0.00043835,120]
[357405022,1744048241618,-500.0,0.00043835,30]
[357405024,1744048241627,-500.0,0.00043835,30]
[357405026,1744048241636,-584.27,0.00043835,30]
[357405027,1744048241646,-500.0,0.00043835,30]
[357405029,1744048241656,-500.0,0.00043835,30]
[357405031,1744048241665,-500.0,0.00043835,30]
[357405033,1744048241675,-661.26,0.00043835,30]